bitfinex-derivatives/quotes_BTCF0:USTF0_20250114
["timestamp","ask_amount","ask_price","bid_price","bid_amount"]
[1736846535771,0.052106,95992.0,95980.0,0.10918261]
[1736846535964,0.052106,95992.0,95981.0,0.003]
[1736846536573,0.10418261,95991.0,95987.0,0.052108]
[1736846536774,0.052106,95992.0,95989.0,0.3608]
[1736846537164,0.052106,95991.0,95981.0,0.005]
[1736846537368,0.052108,95988.0,95982.0,0.052111]
[1736846537667,0.052108,95988.0,95986.0,0.003]
[1736846538070,0.052108,95988.0,95983.0,0.05211]
[1736846538281,0.001,95992.0,95990.0,0.052106]
[1736846538574,0.3608,95998.0,95987.0,0.3608]
[1736846538875,0.052103,95997.0,95993.0,0.052105]
[1736846539972,0.052103,95997.0,95994.0,1.5]
[1736846540677,0.052105,95993.0,95986.0,0.052108]
[1736846540878,0.10418261,95996.0,95986.0,0.052108]
[1736846541078,0.10418261,95996.0,95987.0,1.5]
[1736846541289,0.052106,95992.0,95980.0,0.052112]
[1736846541577,0.052106,95992.0,95991.0,0.052106]
[1736846541877,0.3608,95998.0,95993.0,0.052105]
[1736846543576,0.3608,95998.0,95986.0,0.001]
[1736846543577,0.1421,96005.0,95997.0,0.052103]
[1736846543776,0.18773508,96004.0,95997.0,0.052103]
[1736846543970,0.23983408,96004.0,95987.0,0.3583]
[1736846544170,0.23983408,96004.0,96002.0,0.0521]
[1736846544370,0.23983408,96004.0,96003.0,0.052099]
[1736846546470,0.23983408,96004.0,95997.0,0.052103]
[1736846546471,0.18773508,96004.0,95997.0,0.052103]
[1736846546683,0.052104,95998.0,95997.0,0.052103]
[1736846546881,0.052107,95990.0,95989.0,0.052105]
[1736846547286,0.10418261,96000.0,95987.0,0.37104606]
[1736846547684,0.15628361,96000.0,95999.0,0.052102]
[1736846547979,0.052101,96000.0,95999.0,0.052102]
[1736846549085,0.18773508,96004.0,96003.0,0.052099]
[1736846549282,0.23983408,96004.0,96003.0,0.052099]
[1736846549784,0.10418261,96009.0,95994.0,0.052104]
[1736846549785,0.15627661,96013.0,96012.0,0.052092]
[1736846549975,0.052094,96013.0,96012.0,0.052092]
[1736846550480,0.0521,96003.0,96002.0,0.052099]
[1736846550681,0.4129,96003.0,96002.0,0.052099]
[1736846551186,0.052101,96000.0,95999.0,0.3691403]
[1736846551483,0.052102,95998.0,95997.0,0.052103]
[1736846552382,0.052102,95998.0,95997.0,0.52845053]
[1736846553484,0.052102,95998.0,95997.0,1.10825538]
[1736846553680,0.0521,96003.0,96002.0,0.052099]
[1736846554386,0.3608,96006.0,96005.0,0.052098]
[1736846554581,0.412898,96006.0,96005.0,0.052098]
[1736846554785,0.052098,96006.0,96005.0,1.10825038]
[1736846556795,0.052098,96006.0,96005.0,1.10925038]
[1736846557088,0.052097,96009.0,96007.0,0.052097]
[1736846557284,0.00056001,96016.0,96008.0,0.3608]
[1736846557488,0.052085,96030.0,96015.0,0.052093]
[1736846557694,0.15626761,96030.0,96021.0,0.3608]
[1736846558194,0.052085,96030.0,96021.0,0.3608]
[1736846558892,0.052086,96028.0,96021.0,0.3608]
[1736846559101,0.052086,96028.0,96022.0,0.84678786]
[1736846559296,0.3608,96027.0,96022.0,0.84678786]
[1736846559597,0.052086,96028.0,96022.0,0.84678786]
[1736846560001,0.052086,96028.0,96023.0,0.47634753]
[1736846560200,0.053086,96028.0,96023.0,0.47634753]
[1736846561094,0.053086,96028.0,96019.0,0.37044033]
[1736846561095,0.053086,96028.0,96025.0,0.30855716]
[1736846562896,0.053086,96028.0,96024.0,0.30855716]
[1736846563605,0.053086,96028.0,96025.0,0.001]
[1736846564205,0.053086,96028.0,96022.0,0.30855716]
[1736846564705,0.052088,96024.0,96022.0,0.30855716]
[1736846565002,0.1443,96023.0,96022.0,0.30855716]
[1736846565205,0.1443,96023.0,96018.0,0.73124033]
[1736846565595,0.05209,96020.0,96018.0,0.73124033]
[1736846565999,0.05209,96020.0,96019.0,0.47627308]
[1736846567996,0.19719,96020.0,96019.0,0.47627308]
[1736846568199,0.19719,96020.0,96017.0,0.30869963]
[1736846568504,0.052091,96018.0,96017.0,0.30869963]
[1736846569210,0.052091,96018.0,96017.0,0.47628828]
[1736846569707,0.053091,96018.0,96017.0,0.47628828]
[1736846570205,0.001,96018.0,96017.0,0.47628828]
[1736846572403,0.001,96018.0,96017.0,0.29184828]
[1736846573806,0.001,96018.0,96016.0,0.052092]
[1736846576312,0.001,96018.0,96017.0,0.1567]
[1736846576709,0.001,96018.0,96017.0,1.6567]
[1736846577401,0.001,96018.0,96017.0,1.708792]
[1736846577606,0.001,96018.0,96017.0,0.208792]
[1736846578007,0.001,96018.0,96017.0,1.708792]
[1736846579514,0.001,96018.0,96017.0,0.208792]
[1736846580011,0.052087,96027.0,96017.0,0.1567]
[1736846580216,0.052087,96027.0,96020.0,0.05209]
[1736846580611,0.052087,96027.0,96021.0,0.052089]
[1736846581315,0.052087,96027.0,96020.0,0.30891068]
[1736846581316,0.3608,96029.0,96020.0,0.30891068]
[1736846581513,0.3608,96021.0,96020.0,0.30891068]
[1736846581712,0.3608,96021.0,96015.0,0.42253333]
[1736846581909,0.052089,96022.0,96019.0,0.3608]
[1736846583015,0.052089,96022.0,96019.0,0.41289]
[1736846583215,0.053089,96022.0,96019.0,0.41289]
[1736846587916,0.001,96022.0,96019.0,0.41289]
[1736846588120,0.05209,96021.0,96019.0,0.41289]
[1736846589218,0.19989,96021.0,96019.0,0.41289]
[1736846589420,0.20089,96021.0,96019.0,0.41289]
[1736846589619,0.20089,96021.0,96019.0,0.3608]
[1736846591524,0.052091,96019.0,96017.0,0.30921291]
[1736846592526,0.1488,96021.0,96015.0,0.30921291]
[1736846592527,0.1555,96018.0,96015.0,0.30921291]
[1736846592721,0.052092,96017.0,96015.0,0.30921291]
[1736846593633,0.1565,96018.0,96011.0,0.36130791]
[1736846593833,0.052095,96012.0,96011.0,0.36130791]
[1736846594729,0.1565,96018.0,96010.0,0.3608]
[1736846594924,0.052096,96010.0,96009.0,0.30921291]
[1736846596027,0.052099,96004.0,96003.0,0.052099]
[1736846597136,0.052099,96007.0,96006.0,0.052098]
[1736846597632,0.052099,96007.0,96006.0,1.552098]
[1736846598136,0.052099,96007.0,96006.0,1.56464431]
[1736846598636,0.052099,96007.0,96006.0,1.56664431]
[1736846599134,0.052099,96007.0,96006.0,1.56764431]
[1736846600135,0.052099,96007.0,96006.0,0.054098]
[1736846601826,0.052099,96007.0,96006.0,0.003]
[1736846603833,0.052099,96007.0,96006.0,0.001]
[1736846604030,0.052099,96007.0,96006.0,0.002]
[1736846604938,0.052099,96007.0,96006.0,0.47831141]
[1736846607140,0.052099,96007.0,96006.0,0.002]
[1736846607929,0.052099,96007.0,96006.0,0.31163501]
[1736846608425,0.052099,96007.0,96006.0,0.13495501]
[1736846608736,0.052099,96007.0,96006.0,0.61127706]
[1736846609930,0.052093,96015.0,96001.0,0.4129]
[1736846610131,0.0521,96002.0,96001.0,0.4129]
[1736846611842,0.0521,96002.0,96001.0,0.4169]
[1736846612139,0.0521,96002.0,96001.0,1.9169]
[1736846612339,0.08095266,96020.0,96005.0,0.052098]
[1736846612540,0.052098,96006.0,96005.0,0.052098]
[1736846614638,0.052098,96006.0,96005.0,0.053098]
[1736846615240,0.052098,96006.0,96005.0,0.055098]
[1736846619039,0.052098,96006.0,96005.0,0.90183931]
[1736846619947,0.052098,96006.0,96005.0,0.53139898]
[1736846620542,0.052094,96015.0,96014.0,0.052093]
[1736846620752,0.052094,96015.0,96014.0,0.412893]
[1736846621739,0.054094,96015.0,96014.0,0.412893]
[1736846621939,0.054094,96015.0,96014.0,0.88919398]
[1736846623450,0.054094,96015.0,96014.0,0.90143082]
[1736846624944,0.002,96015.0,96014.0,0.90143082]
[1736846625249,0.00012084,96020.0,96019.0,0.052091]
[1736846626439,0.00112084,96020.0,96019.0,0.052091]
[1736846626652,0.05321084,96020.0,96019.0,0.052091]
[1736846630059,0.00112084,96020.0,96019.0,0.052091]
[1736846634355,0.00112084,96020.0,96019.0,0.52833194]
[1736846634863,0.052087,96027.0,96026.0,0.052087]
[1736846635961,0.00156258,96030.0,96029.0,0.052085]
[1736846637165,0.00156258,96030.0,96029.0,0.053085]
[1736846637670,0.05364758,96030.0,96029.0,0.053085]
[1736846637871,0.00156258,96030.0,96029.0,0.053085]
[1736846638064,0.05364758,96030.0,96029.0,0.053085]
[1736846638262,0.052086,96028.0,96027.0,0.052086]
[1736846639973,0.052086,96028.0,96027.0,0.053086]
[1736846641672,0.052086,96028.0,96027.0,0.052086]
[1736846642363,0.053086,96028.0,96027.0,0.052086]
[1736846642767,0.052086,96028.0,96027.0,0.052086]
[1736846642965,0.053086,96028.0,96027.0,0.83780144]
[1736846643574,0.052086,96028.0,96027.0,0.83780144]
[1736846646175,0.052086,96028.0,96027.0,0.36158925]
[1736846647363,0.052086,96028.0,96027.0,0.052086]
[1736846648376,0.052086,96028.0,96027.0,0.52828581]
[1736846649671,0.052086,96028.0,96027.0,0.052086]
[1736846650278,0.00156258,96030.0,96029.0,0.052085]
[1736846650480,0.052066,96066.0,96026.0,0.3608]
[1736846650481,0.3608,96070.0,96030.0,0.052084]
[1736846650773,0.1482,96069.0,96058.0,0.05207]
[1736846651174,0.3608,96077.0,96059.0,0.052069]
[1736846651375,0.152047,96100.0,96087.0,0.052054]
[1736846651376,0.1,96100.0,96087.0,0.052054]
[1736846651764,0.1,96100.0,96078.0,0.18888142]
[1736846651765,0.1,96100.0,96099.0,0.052047]
[1736846651972,0.3608,96119.0,96118.0,0.052037]
[1736846652376,0.3608,96119.0,96110.0,0.3608]
[1736846652574,0.052037,96119.0,96110.0,0.3608]
[1736846652771,0.13682242,96120.0,96110.0,0.3608]
[1736846653281,0.06974795,96140.0,96110.0,0.3608]
[1736846653282,0.3608,96151.0,96121.0,0.037]
[1736846653476,0.3608,96151.0,96110.0,0.13682242]
[1736846653477,0.3608,96171.0,96150.0,0.3608]
[1736846653783,0.3608,96171.0,96158.0,0.3608]
[1736846653969,0.3608,96171.0,96150.0,0.3608]
[1736846653970,0.10395079,96168.0,96150.0,0.3608]
[1736846654170,0.3608,96161.0,96142.0,0.3608]
[1736846654379,0.25992058,96152.0,96151.0,0.3608]
[1736846654576,0.052023,96144.0,96142.0,0.3608]
[1736846654777,0.052026,96139.0,96138.0,0.00128]
[1736846654980,0.3608,96145.0,96119.0,0.00136]
[1736846654981,0.3608,96143.0,96119.0,0.00136]
[1736846655183,0.3608,96143.0,96110.0,0.24459673]
[1736846655184,0.3608,96128.0,96110.0,0.24459673]
[1736846655380,0.052041,96111.0,96110.0,0.24459673]
[1736846655580,0.052041,96111.0,96101.0,0.3608]
[1736846655581,0.052042,96109.0,96101.0,0.3608]
[1736846655777,0.052043,96108.0,96102.0,0.3608]
[1736846655984,0.10395079,96112.0,96102.0,0.3608]
[1736846656188,0.15599079,96112.0,96111.0,0.3608]
[1736846656478,0.05204,96112.0,96111.0,0.3608]
[1736846656986,0.052033,96126.0,96117.0,0.052038]
[1736846657176,0.052033,96126.0,96125.0,0.3608]
[1736846657484,0.10395079,96140.0,96125.0,0.3608]
[1736846657685,0.01211662,96158.0,96137.0,0.3608]
[1736846657982,0.36140001,96159.0,96157.0,0.3608]
[1736846657983,0.00060001,96159.0,96157.0,0.3608]
[1736846658184,0.052015,96159.0,96157.0,0.3608]
[1736846658377,0.0015605,96168.0,96157.0,0.3608]
[1736846658685,0.052011,96167.0,96165.0,0.3608]
[1736846659385,0.01213945,96169.0,96168.0,0.05201]
[1736846659584,0.3608,96183.0,96166.0,0.001]
[1736846659780,0.3608,96183.0,96175.0,0.3608]
[1736846659982,0.1558132,96180.0,96161.0,0.3608]
[1736846660185,0.052013,96162.0,96161.0,0.3608]
[1736846661785,0.052013,96162.0,96161.0,0.3618]
[1736846663781,0.20784748,96190.0,96161.0,0.3618]
[1736846663782,0.052001,96175.0,96161.0,0.6618]
[1736846664088,0.052001,96175.0,96174.0,0.3608]
[1736846665079,0.052001,96175.0,96174.0,1.8608]
[1736846665280,0.052001,96175.0,96174.0,1.86068455]
[1736846665474,0.052001,96175.0,96174.0,0.36068455]
[1736846666084,0.052001,96175.0,96174.0,0.36168455]
[1736846667786,4.128e-05,96190.0,96174.0,0.36168455]
[1736846667787,0.051998,96181.0,96176.0,0.052]
[1736846667984,0.051998,96181.0,96174.0,0.36168455]
[1736846667985,0.051996,96184.0,96179.0,0.051998]
[1736846668185,0.051996,96184.0,96182.0,0.3608]
[1736846670885,0.051996,96184.0,96182.0,0.001]
[1736846671080,0.19426743,96188.0,96182.0,0.001]
[1736846671390,0.051996,96184.0,96182.0,0.001]
[1736846672086,0.04864478,96198.0,96182.0,0.001]
[1736846672291,0.051994,96188.0,96187.0,0.3608]
[1736846674688,0.051994,96188.0,96187.0,0.3618]
[1736846675185,0.1617,96210.0,96187.0,0.3618]
[1736846675186,0.051973,96227.0,96187.0,0.6618]
[1736846675497,0.051982,96210.0,96208.0,0.5166132]
[1736846675697,0.051982,96210.0,96208.0,0.3608]
[1736846675893,0.051973,96227.0,96208.0,0.412783]
[1736846676089,0.051973,96227.0,96217.0,0.3608]
[1736846676306,0.3608,96254.0,96217.0,0.3608]
[1736846676595,0.051974,96225.0,96224.0,0.3608]
[1736846677290,0.051981,96213.0,96212.0,0.3608]
[1736846677492,0.051986,96203.0,96195.0,0.3608]
[1736846677698,0.051989,96197.0,96195.0,0.3608]
[1736846678496,0.052,96177.0,96176.0,0.3608]
[1736846679204,0.052008,96163.0,96162.0,0.00155974]
[1736846679892,0.01180168,96188.0,96162.0,0.00155974]
[1736846680093,0.051996,96184.0,96183.0,0.3608]
[1736846682002,0.04191883,96194.0,96183.0,0.3608]
[1736846682404,0.051996,96184.0,96183.0,0.3608]
[1736846685999,0.051996,96184.0,96183.0,0.83626182]
[1736846686202,0.051996,96184.0,96183.0,0.47546182]
[1736846686398,0.051996,96184.0,96183.0,0.83626182]
[1736846686595,0.005,96184.0,96183.0,0.88825882]
[1736846686800,0.1504,96212.0,96195.0,0.05199]
[1736846687000,0.1504,96212.0,96207.0,0.3608]
[1736846687207,0.051983,96208.0,96207.0,0.3608]
[1736846687406,0.0101752,96220.0,96207.0,0.3608]
[1736846687600,0.051983,96208.0,96207.0,0.3608]
[1736846688404,0.060983,96208.0,96207.0,0.3618]
[1736846689206,0.1558132,96220.0,96207.0,2.09469108]
[1736846689407,0.051983,96208.0,96207.0,2.09469108]
[1736846690807,0.051983,96208.0,96207.0,1.41560916]
[1736846691323,0.051983,96208.0,96207.0,1.41460916]
[1736846692405,0.052983,96208.0,96207.0,1.46659316]
[1736846694110,0.052983,96208.0,96207.0,1.46759316]
[1736846695001,0.052983,96208.0,96207.0,0.88907869]
[1736846695899,0.001,96208.0,96207.0,0.88907869]
[1736846696108,0.192867,96238.0,96208.0,0.051983]
[1736846696310,0.051972,96228.0,96227.0,0.3608]
[1736846696704,0.051972,96228.0,96227.0,1.912773]
[1736846696911,0.051967,96238.0,96237.0,0.051967]
[1736846697108,0.051965,96242.0,96241.0,0.051965]
[1736846697312,0.3608,96253.0,96237.0,0.3608]
[1736846697613,0.3608,96253.0,96244.0,0.051964]
[1736846697813,0.051963,96246.0,96244.0,0.051964]
[1736846698208,0.3608,96253.0,96237.0,0.3608]
[1736846698517,0.051967,96240.0,96239.0,0.051966]
[1736846698703,0.051967,96238.0,96237.0,0.3608]
[1736846698902,0.2077742,96250.0,96227.0,0.36208]
[1736846698903,0.3608,96242.0,96227.0,0.36208]
[1736846699108,0.3608,96230.0,96216.0,0.3608]
[1736846699312,0.051978,96217.0,96216.0,0.3608]
[1736846699506,0.051978,96217.0,96216.0,0.412779]
[1736846699809,0.051975,96223.0,96222.0,0.051975]
[1736846700004,0.051971,96231.0,96230.0,0.051971]
[1736846700210,0.051977,96221.0,96220.0,0.051977]
[1736846701513,0.051977,96221.0,96220.0,0.056977]
[1736846701919,0.051977,96221.0,96220.0,0.005]
[1736846702612,0.051973,96227.0,96226.0,0.051973]
[1736846702810,0.051976,96222.0,96221.0,0.204376]
[1736846703514,0.051976,96222.0,96221.0,0.347476]
[1736846704020,0.051973,96230.0,96229.0,0.051971]
[1736846704205,0.41277,96233.0,96232.0,0.05197]
[1736846704808,0.051974,96227.0,96226.0,0.052973]
[1736846705020,0.051974,96227.0,96226.0,0.001]
[1736846705715,0.051983,96208.0,96193.0,0.35821453]
[1736846706011,0.051981,96213.0,96212.0,0.051979]
[1736846706218,0.051975,96223.0,96222.0,0.051975]
[1736846706411,0.051976,96222.0,96221.0,0.3608]
[1736846708221,0.051976,96222.0,96221.0,0.3618]
[1736846709419,0.051976,96222.0,96221.0,0.413776]
[1736846709620,0.051966,96239.0,96238.0,0.051967]
[1736846709819,0.051966,96239.0,96238.0,0.412767]
[1736846710317,0.051966,96239.0,96238.0,0.3608]
[1736846711129,0.051966,96239.0,96238.0,0.5116]
[1736846711613,0.051966,96239.0,96238.0,0.5086]
[1736846711918,0.051966,96239.0,96238.0,0.5116]
[1736846712316,0.051966,96239.0,96238.0,0.5096]
[1736846712619,0.051966,96239.0,96238.0,0.560567]
[1736846713013,0.412758,96255.0,96238.0,0.5086]
[1736846713209,0.051966,96244.0,96243.0,0.051963]
[1736846713623,0.051967,96239.0,96238.0,0.560566]
[1736846715016,0.051967,96239.0,96238.0,0.5076]
[1736846715316,0.051967,96239.0,96238.0,0.1508]
[1736846716213,0.051967,96239.0,96238.0,0.200767]
[1736846716214,0.11219241,96239.0,96238.0,0.200767]
[1736846716519,0.11219241,96239.0,96238.0,0.1488]
[1736846717523,0.051967,96239.0,96238.0,0.1488]
[1736846717912,0.051967,96239.0,96238.0,0.1478]
[1736846718227,0.051967,96239.0,96238.0,0.1468]
[1736846718814,0.052967,96239.0,96238.0,0.1468]
[1736846720823,0.052967,96239.0,96238.0,0.559567]
[1736846721332,0.052967,96239.0,96238.0,0.561567]
[1736846721819,0.051967,96239.0,96238.0,0.559567]
[1736846722024,0.051967,96239.0,96238.0,0.564567]
[1736846722622,0.01503264,96256.0,96238.0,0.5116]
[1736846722819,0.051957,96256.0,96255.0,0.3608]
[1736846724317,0.051957,96256.0,96250.0,0.1388]
[1736846724622,0.05196,96251.0,96250.0,0.1388]
[1736846727222,0.05196,96251.0,96250.0,0.190761]
[1736846727527,0.05296,96251.0,96250.0,0.1388]
[1736846728321,0.05296,96251.0,96250.0,0.190761]
[1736846729124,0.001,96251.0,96250.0,0.190761]
[1736846729326,0.1,96300.0,96250.0,0.1388]
[1736846729327,0.01530476,96280.0,96250.0,0.1388]
[1736846729628,0.11261066,96315.0,96314.0,0.051926]
[1736846729823,0.10373239,96340.0,96314.0,0.3608]
[1736846730032,0.10373239,96340.0,96332.0,0.3608]
[1736846730033,0.051916,96333.0,96332.0,0.3608]
[1736846730224,0.052916,96333.0,96332.0,0.3608]
[1736846730426,0.051918,96329.0,96328.0,0.3608]
[1736846730929,0.052918,96329.0,96328.0,0.3608]
[1736846731328,0.3608,96383.0,96332.0,0.001]
[1736846731528,0.051909,96346.0,96345.0,0.3608]
[1736846731730,0.051914,96336.0,96335.0,0.3608]
[1736846732327,0.06531484,96336.0,96335.0,0.3608]
[1736846732524,0.06431484,96336.0,96335.0,0.3608]
[1736846733727,0.01240084,96336.0,96335.0,0.3608]
[1736846733928,0.01240084,96336.0,96335.0,0.412715]
[1736846734123,0.01240084,96336.0,96335.0,0.413715]
[1736846734427,0.15522524,96370.0,96364.0,0.051899]
[1736846734626,0.3608,96380.0,96360.0,0.3608]
[1736846734833,0.05189,96382.0,96365.0,0.051898]
[1736846735032,0.15522524,96380.0,96366.0,1.5]
[1736846735222,0.051892,96378.0,96376.0,0.3608]
[1736846736128,0.17048984,96390.0,96376.0,0.3608]
[1736846736435,0.23448046,96377.0,96376.0,0.3608]
[1736846736634,0.25100826,96377.0,96376.0,0.3608]
[1736846736924,0.32431429,96377.0,96376.0,0.3618]
[1736846737133,0.32479601,96377.0,96376.0,0.3618]
[1736846737317,0.38319551,96377.0,96376.0,0.3618]
[1736846737523,0.39053294,96377.0,96376.0,0.3608]
[1736846737725,0.39053294,96377.0,96376.0,0.3618]
[1736846737926,0.38420743,96377.0,96376.0,0.3618]
[1736846738532,0.38420743,96377.0,96376.0,0.3628]
[1736846739331,4.135e-05,96390.0,96376.0,0.3638]
[1736846739525,0.051883,96394.0,96389.0,0.3608]
[1736846739730,0.11467002,96400.0,96391.0,0.3608]
[1736846739731,0.051884,96392.0,96391.0,0.3608]
[1736846739933,0.051884,96392.0,96377.0,0.1382]
[1736846739934,0.051892,96378.0,96377.0,0.1382]
[1736846740232,0.051892,96378.0,96376.0,0.3628]
[1736846740233,0.051892,96378.0,96376.0,1e-06]
[1736846740426,0.3608,96377.0,96376.0,1e-06]
[1736846740626,0.051896,96370.0,96368.0,0.3608]
[1736846740822,0.051896,96370.0,96357.0,0.3608]
[1736846741319,0.051896,96370.0,96369.0,0.36235621]
[1736846741520,0.051896,96371.0,96369.0,0.36235621]
[1736846741835,0.051896,96371.0,96369.0,0.00155621]
[1736846742021,0.3608,96370.0,96369.0,2.1e-07]
[1736846742228,0.051913,96338.0,96331.0,0.3608]
[1736846743429,0.051913,96338.0,96337.0,0.00384]
[1736846744133,0.051913,96338.0,96337.0,0.00084]
[1736846744331,0.051913,96338.0,96337.0,0.00184]
[1736846744633,0.051913,96338.0,96331.0,0.3608]
[1736846744634,0.051914,96336.0,96317.0,0.3608]
[1736846744837,0.15522524,96330.0,96317.0,0.3608]
[1736846745028,0.051924,96319.0,96317.0,0.3608]
[1736846745536,0.051927,96312.0,96311.0,0.3608]
[1736846745726,0.15522524,96321.0,96305.0,0.3608]
[1736846745924,0.15522524,96321.0,96263.0,0.3608]
[1736846745925,0.051933,96301.0,96263.0,0.3608]
[1736846746131,0.051947,96275.0,96268.0,0.051951]
[1736846746334,0.51602524,96290.0,96268.0,0.051951]
[1736846746537,0.20716824,96283.0,96275.0,1.5]
[1736846746732,0.51602524,96290.0,96275.0,1.5]
[1736846746933,0.3608,96290.0,96280.0,0.3608]
[1736846747133,0.412735,96298.0,96280.0,0.3608]
[1736846747334,0.412735,96298.0,96287.0,0.05194]
[1736846747335,0.3608,96298.0,96287.0,0.05194]
[1736846747538,0.3608,96298.0,96280.0,0.6027251]
[1736846747930,0.41274,96288.0,96280.0,0.6027251]
[1736846748335,0.051941,96287.0,96280.0,0.66320637]
[1736846748529,0.051941,96287.0,96280.0,0.71515037]
[1736846748733,0.3608,96288.0,96284.0,0.051942]
[1736846748933,0.3608,96298.0,96284.0,0.051942]
[1736846749233,0.3608,96289.0,96285.0,0.24212702]
[1736846749739,0.3608,96298.0,96285.0,0.24212702]
[1736846750040,0.051936,96297.0,96289.0,0.051939]
[1736846750236,0.051936,96296.0,96291.0,0.051938]
[1736846750432,0.051936,96296.0,96294.0,0.051937]
[1736846750636,0.3608,96298.0,96287.0,0.30240637]
[1736846750637,0.051938,96293.0,96287.0,0.30240637]
[1736846751239,0.3608,96298.0,96297.0,0.051935]
[1736846751437,0.3608,96320.0,96296.0,0.3608]
[1736846751631,0.3608,96331.0,96330.0,0.051917]
[1736846751940,0.3608,96331.0,96330.0,1.551917]
[1736846752336,0.3608,96331.0,96330.0,1.552917]
[1736846752640,0.14755724,96364.0,96355.0,0.051904]
[1736846752641,0.3608,96356.0,96355.0,0.051904]
[1736846753435,0.051905,96353.0,96351.0,0.2422068]
[1736846753744,0.051905,96353.0,96351.0,0.2941128]
[1736846753943,0.051905,96353.0,96351.0,0.2422068]
[1736846754140,0.412705,96353.0,96351.0,0.2422068]
[1736846754441,0.051909,96346.0,96342.0,0.30240637]
[1736846754641,0.051906,96352.0,96342.0,0.30240637]
[1736846754848,0.051906,96352.0,96351.0,0.001]
[1736846755341,0.36536001,96353.0,96351.0,0.001]
[1736846755342,0.2302746,96353.0,96351.0,0.001]
[1736846755643,0.051906,96352.0,96351.0,0.001]
[1736846755838,0.051906,96352.0,96351.0,0.24341298]
[1736846756847,0.051906,96352.0,96349.0,0.24241298]
[1736846757046,0.22571459,96353.0,96349.0,0.24241298]
[1736846757047,0.051906,96351.0,96349.0,0.24241298]
[1736846757340,0.22571459,96353.0,96349.0,0.24241298]
[1736846757546,0.22571459,96353.0,96350.0,0.051906]
[1736846757845,0.002,96352.0,96350.0,0.051906]
[1736846758039,0.002,96352.0,96347.0,0.30240637]
[1736846758233,0.002,96352.0,96350.0,0.051907]
[1736846758643,0.00155724,96364.0,96363.0,0.0519]
[1736846758853,0.05189,96382.0,96363.0,0.3608]
[1736846759048,0.05189,96382.0,96372.0,0.3608]
[1736846759348,0.05189,96381.0,96376.0,0.051892]
[1736846759537,0.051891,96380.0,96376.0,0.051892]
[1736846759848,0.051892,96378.0,96373.0,0.83909382]
[1736846760044,0.3608,96381.0,96373.0,0.83909382]
[1736846760341,0.002,96382.0,96381.0,0.05189]
[1736846761043,0.3608,96396.0,96381.0,0.3608]
[1736846761240,0.3608,96398.0,96381.0,0.3608]
[1736846761437,0.051887,96387.0,96381.0,0.412689]
[1736846761639,0.051887,96387.0,96381.0,0.3618]
[1736846761843,0.051883,96394.0,96381.0,0.7226]
[1736846762049,0.051883,96394.0,96393.0,0.3608]
[1736846762341,0.1,96400.0,96398.0,0.05188]
[1736846762544,0.1,96400.0,96393.0,0.412683]
[1736846762846,0.1,96400.0,96397.0,0.051881]
[1736846762847,0.051881,96399.0,96397.0,0.051881]
[1736846763037,0.1,96400.0,96397.0,0.051881]
[1736846763550,0.051883,96394.0,96393.0,0.36539858]
[1736846763747,0.051883,96394.0,96393.0,0.36455858]
[1736846764141,0.051884,96393.0,96390.0,0.3608]
[1736846764351,0.3608,96399.0,96382.0,0.3608]
[1736846764548,0.3608,96391.0,96372.0,0.3608]
[1736846764844,0.051891,96380.0,96378.0,0.051891]
[1736846765051,0.051885,96391.0,96390.0,0.30346557]
[1736846765237,0.051885,96391.0,96390.0,0.30446557]
[1736846765842,0.051885,96391.0,96390.0,0.30346557]
[1736846766448,0.051885,96391.0,96390.0,0.8386154]
[1736846766643,0.1,96400.0,96390.0,0.8386154]
[1736846766951,0.051885,96391.0,96390.0,0.8386154]
[1736846767152,0.054885,96391.0,96390.0,0.8386154]
[1736846767450,0.051885,96391.0,96390.0,0.47445672]
[1736846767644,0.051885,96391.0,96390.0,0.47545672]
[1736846767842,0.051885,96391.0,96390.0,0.001]
[1736846768248,0.051886,96388.0,96387.0,0.051887]
[1736846769038,0.051878,96403.0,96384.0,0.3608]
[1736846769242,0.051888,96386.0,96375.0,0.00084]
[1736846769447,0.3608,96376.0,96370.0,0.00155654]
[1736846769644,0.1333,96385.0,96364.0,0.3608]
[1736846769645,0.051897,96369.0,96364.0,0.3608]
[1736846769838,0.1414,96395.0,96367.0,0.3608]
[1736846769839,0.001,96395.0,96367.0,0.3608]
[1736846770041,0.051883,96394.0,96387.0,0.051886]
[1736846770253,0.051883,96394.0,96385.0,0.3608]
[1736846770254,0.051882,96395.0,96394.0,0.3608]
[1736846770545,0.36235662,96405.0,96385.0,0.3608]
[1736846770546,0.051885,96391.0,96385.0,0.3608]
[1736846770748,0.051887,96386.0,96385.0,0.3608]
[1736846772045,0.3608,96397.0,96385.0,0.3608]
[1736846772455,0.051879,96402.0,96396.0,0.3608]
[1736846772750,0.051881,96397.0,96396.0,0.3608]
[1736846773657,0.1464,96403.0,96396.0,0.3608]
[1736846773859,0.051881,96397.0,96396.0,0.3608]
[1736846774650,0.051881,96397.0,96396.0,0.3618]
[1736846775154,0.051881,96397.0,96396.0,0.001]
[1736846776058,0.1464,96403.0,96396.0,0.001]
[1736846776254,0.36235649,96417.0,96396.0,0.001]
[1736846776255,0.3608,96416.0,96396.0,0.001]
[1736846776459,0.3608,96427.0,96411.0,0.3608]
[1736846776758,0.3608,96427.0,96420.0,0.3608]
[1736846777061,0.3608,96427.0,96426.0,0.051866]
[1736846777652,0.00102136,96440.0,96424.0,0.3608]
[1736846777858,0.00102136,96440.0,96438.0,0.412659]
[1736846778348,0.00344233,96450.0,96438.0,0.3608]
[1736846778666,0.00344233,96450.0,96449.0,1.5]
[1736846779159,0.00135979,96460.0,96449.0,1.5]